Workbook

Sheet المقسطون
C2: ملف العميــل | D2: 100 | E2: الاســم | F2: =VLOOKUP(D2,B26:K36,2,0) -> 1 | J2: تاريخ اليوم : | K2: =TODAY() -> 2022-02-16
A4: نظـام الخصــم | I4: حساب نســبة التقسـيط | L4: نظام تحويل التاريخ من هجري لميلادي
E5: إسم البضاعة :
C6: السعر النقدي | D6: =VLOOKUP(D2,B26:K36,4,0) -> 45000 | I6: السعر | J6: الاشهر | L6: بداية التسديد | M6: نهاية التسديد
C7: قيمة العقد بالتقسيط | D7: =VLOOKUP(D2,B26:K36,5,0) -> 46400 | E7: موديلها : | I7: 50000 | J7: =VLOOKUP(D2,B26:K36,3,1) -> 40 | L7: =D11 -> 2008-10-25 | M7: =D12 -> 2011-12-20
C8: المقدم | D8: 0 | I8: الزيادة | J8: =SUM(I7*(J7%+5%)) -> 22500 | L8: =TEXT(L7,"[$-,197000]B2yyyy/mm/dd;@")+1 -> 2008-10-26 | M8: =TEXT(M7,"[$-,197000]B2yyyy/mm/dd;@")+1 -> 2011-12-21
C9: القسط الشهري | D9: =VLOOKUP(D2,B26:K36,6,0) -> 1160 | I9: بعد الزيادة | J9: =SUM(I7+J8) -> 72500 | L9: =TEXT(L7+1,"[$-,197]B2yyyy/mm/dd;@") -> 1429/10/26 | M9: =TEXT(M7+1,"[$-,197]B2yyyy/mm/dd;@") -> 1433/01/26
C10: ماتم سداده من المبلغ | D10: =IF($D$11>$K$2,0,IF($D$12<$K$2,$D$7,(SUM(DATEDIF($D$11,$K$2,"Y")*12)+(DATEDIF($D$11,$K$2,"ym"))+(IF(DATEDIF($D$11,$K$2,"md")<>0,1,0)))*D9)) -> 46400 | F10: المدة | G10: =(D7-D8)/D9 -> 40 | I10: القسط الشهري | J10: =SUM(J9/J7) -> 1812.5
C11: بداية التسديد | D11: =VLOOKUP(D2,B26:K36,7,0) -> 2008-10-25 | F11: الربح كامل | G11: =D7-D6 -> 1400 | I11: التاريخ الميلادي والتاريخ الهجري
C12: نهاية التسديد | D12: =VLOOKUP(D2,B26:K36,8,0) -> 2011-12-20 | F12: الربح الشهري | G12: =G11/G10 -> 35
C13: الأشهر المسددة | D13: =(D10/D9) -> 40 | F13: النسبة | G13: =(G11/(D6-D8))*100 -> 3.111111111 | I13: ملف العميــل | J13: الاســم | L13: مدة العقـد | M13: من | N13: الى
C14: الأشهر المتبقية | D14: =D16/D9 -> 0 | F14: النسبة السنوية | G14: =(G13/G10)*12 -> 0.9333333333 | I14: =D2 -> 100 | J14: =F2 -> 1 | L14: =G10 -> 40 | M14: =D11 -> 2008-10-25 | N14: =D12 -> 2011-12-20
F15: النسبة الشهرية | G15: =G13/G10 -> 0.07777777778 | I15: حالة الاشهر وقيمة العقد | M15: =TEXT(M14,"[$-,197000]B2yyyy/mm/dd;@")+1 -> 2008-10-26 | N15: =EDATE(M15,L14) -> 2012-02-26
C16: الباقي من المبلغ | D16: =D7-D10 -> 0 | I16: الأشهر المسددة | J16: ='حركة تسديد عميل'!H7 -> 38 | K16: المبــالغ المســدة | L16: =(J16*D9) -> 44080 | M16: نسبة السداد بـ %
C17: الخصم | D17: =((D16*G14%)*(D14/12))/(1+((G14%)*(D14/12))) -> 0 | I17: الأشهر المتبقية | J17: =L14-J16 -> 2 | K17: المبــالغ المتبـقية | L17: =(J17*D9) -> 2320 | M17: =L16/D7 -> 0.95
C18: المطلوب | D18: =D16-D17 -> 0 | I18: حـالة العقــد | J18: =VLOOKUP(D2,B26:N36,11,0) -> العقـد منتهى | K18: مبلغ السداد المبكر | L18: =IF(J18="سداد مبكر",INDEX(N26:N36,MATCH(J18,L26:L36,0)),"") ->  | M18: تاريخ السداد المبكر | N18: =IF(J18="سداد مبكر",INDEX(M26:M36,MATCH(J18,L26:L36,0)),"") -> 
M19: =VLOOKUP(D4,B27:L37,11,0) ->  | N19: =VLOOKUP(E4,C27:M37,11,0) -> 
M20: =VLOOKUP(D5,B28:L38,11,0) ->  | N20: =VLOOKUP(E5,C28:M38,11,0) -> 
M21: =VLOOKUP(D6,B28:L39,11,0) ->  | N21: =VLOOKUP(E6,C28:M39,11,0) -> 
M22: =VLOOKUP(D7,B28:L40,11,0) ->  | N22: =VLOOKUP(E7,C28:M40,11,0) -> 
C23: ملاحظة : اذا تم السداد قبل الموعد المحدد يتم إضافة 1000 ( الف ريال )
B25: رقم الملف | C25: الاسم | D25: مدة القرض ( بالشهر ) | E25: السعر النقدي | F25: القيمة بعد التقسيط | G25: القسط | H25: من | I25: الى | J25: الربــح | K25: الدخل الشهري | L25: حـالة العقـد | M25: سداد مبكر بتاريخ | N25: المبلغ المسدد
B26: 100 | C26: 1 | D26: 40 | E26: 45000 | F26: 46400 | G26: 1160 | H26: 2008-10-25 | I26: =MID(TEXT(H26,"b2dd.mm.yyyy"),1,2)-MID(TEXT(H26+ROUND((D26-1)*354.367056/12,0),"b2dd.mm.yyyy"),1,2)+H26+ROUND((D26-1)*354.367056/12,0) -> 2011-12-20 | J26: =SUM(E26*(D26%+5%)) -> 20250 | K26: 0 | L26: =IFERROR(IF(AND(M26<>"",M26<I26),"سداد مبكر",IF(TODAY()=I26,"العقد انتهى اليوم",IF(TODAY()>I26,"العقـد منتهى",IF(TODAY()<H26,"لم يتم تداولة","العقـد سارى")))),"") -> العقـد منتهى
B27: 200 | C27: 2 | D27: 40 | E27: 45000 | F27: 43500 | G27: 1087 | H27: 2009-01-21 | I27: 2012-03-18 | J27: 20250 | K27: 0 | L27: =IFERROR(IF(AND(M27<>"",M27<I27),"سداد مبكر",IF(TODAY()=I27,"العقد انتهى اليوم",IF(TODAY()>I27,"العقـد منتهى",IF(TODAY()<H27,"لم يتم تداولة","العقـد سارى")))),"") -> العقـد منتهى
G28: =F28/40 -> 0
G29: 0
G30: 0
G31: 0
G32: 0
G33: 0
G34: 0
G35: 0
G36: 0
E37: =SUM(E26:E36) -> 90000 | F37: =SUM(F26:F36) -> 89900 | J37: =SUM(J26:J36) -> 40500 | K37: =SUM(K26:K36) -> 0

Sheet حركة تسديد عميل
A2: ملف العميــل | B2: 200 | C2: الاســم | D2: =VLOOKUP(B2,المقسطون!B25:I35,2,0) -> 2 | H2: تاريخ اليوم : | I2: =TODAY() -> 2022-02-16
B5: مدة العقد (بالاشهر) | C5: =VLOOKUP(B2,المقسطون!$B$25:$H$35,3,0) -> 40 | F5: حـالة العقــد | G5: =VLOOKUP(B2,المقسطون!B26:N36,11,0) -> العقـد منتهى
D6: الأقساط التأخرة | E6: =SUM(I19:I58) -> 2175
B7: بداية العقد | C7: =VLOOKUP(B2,المقسطون!$B$25:$H$35,7,0) -> 2009-01-21 | G7: الأشهر المسددة | H7: =IF(COUNT(H19:H58)>C9,C9,COUNT(H19:H58)) -> 38
C8: =TEXT(C7,"[$-,197000]B2yyyy/mm/dd;@")+1 -> 2009-01-22 | G8: الأشهر المتبقية | H8: =C5-H7 -> 2
B9: نهاية العقد | C9: =TEXT(C7+((C5-1)*29.5),"B2yyyy/mm/")&TEXT(C7,"B2dd") -> 1433/04/25 | G9: المبــالغ المســدة | H9: =SUM(H19:H58) -> 41325
C10: =ConvertDate(C9) -> 2012/03/18 | G10: المبــالغ المتبـقية | H10: =-(H9-C14) -> 2175
B11: القســـــــط | C11: =VLOOKUP(B2,المقسطون!$B$25:$H$35,6,0) -> 1087 | G11: نسبة السداد بـ % | H11: =H9/C14 -> 0.95
B12: السعر النقدي | C12: =VLOOKUP(B2,المقسطون!$B$25:$H$35,4,0) -> 45000
B13: الربـــــــــح | C13: =VLOOKUP(B2,المقسطون!B26:N36,9,0) -> 20250 | G13: الســداد المبكـر
B14: قيمة العقد | C14: =VLOOKUP(B2,المقسطون!$B$25:$H$35,5,0) -> 43500 | D14: حركة تسديد عميل | G14: تاريخ السداد المبكر | H14: =IF(G5="سداد مبكر",INDEX(المقسطون!M26:M36,MATCH(G5,المقسطون!L26:L36,0)),"") -> 
G16: قيمة السداد المبكر | H16: =IF(G5="سداد مبكر",INDEX(المقسطون!N27:N37,MATCH(G5,المقسطون!L27:L37,0)),"") -> 
C18: الشهــر | D18: التحصيل بالتاريخ ( هـ ) | E18: التحصيل بالتاريخ ( م ) | F18: رصيد القرض | G18: القسط | H18: التسديدات | I18: الأقساط المتأخرة | K18: تم التحصيل | L18: التاريخ المتأخر
C19: =IF(D19="","",ROW()-18) -> 1 | D19: =IF(K19<>"",IF(h2g(TEXT($C$7+((ROW()-19)*29.5),"B2yyyy/mm/")&TEXT($C$7,"B2dd"))>$H$14,"",IF(h2g(TEXT($C$7+((ROW()-19)*29.5),"B2yyyy/mm/")&TEXT($C$7,"B2dd"))>h2g($C$9),"",TEXT($C$7+((ROW()-19)*29.5),"B2yyyy/mm/")&TEXT($C$7,"B2dd"))),"") -> 1430/01/25 | E19: =IF(D19<>"",ConvertDate(D19),"") -> 2009/01/21 | F19: =C14 -> 43500 | G19: =IF(D19="","",IF($C$14="","",$C$14/$C$5)) -> 1087.5 | H19: =IF(K19="","",IF(TODAY()>=h2g(D19),$C$14/$C$5,"")) -> 1087.5 | I19: =IF(K19="",$C$14/$C$5,"") ->  | K19: 8 | L19: 2022-02-16
C20: 2 | D20: =IF(K20<>"",IF(h2g(TEXT($C$7+((ROW()-19)*29.5),"B2yyyy/mm/")&TEXT($C$7,"B2dd"))>$H$14,"",IF(h2g(TEXT($C$7+((ROW()-19)*29.5),"B2yyyy/mm/")&TEXT($C$7,"B2dd"))>h2g($C$9),"",TEXT($C$7+((ROW()-19)*29.5),"B2yyyy/mm/")&TEXT($C$7,"B2dd"))),"") -> 1430/02/25 | E20: =IF(D20<>"",ConvertDate(D20),"") -> 2009/02/20 | F20: =IF(D20="","",F19-G20) -> 42412.5 | G20: 1087.5 | H20: =IF(K20="","",IF(TODAY()>=h2g(D20),$C$14/$C$5,"")) -> 1087.5 | I20: =IF(K20="",$C$14/$C$5,"") ->  | K20: 8
C21: 3 | D21: =IF(K21<>"",IF(h2g(TEXT($C$7+((ROW()-19)*29.5),"B2yyyy/mm/")&TEXT($C$7,"B2dd"))>$H$14,"",IF(h2g(TEXT($C$7+((ROW()-19)*29.5),"B2yyyy/mm/")&TEXT($C$7,"B2dd"))>h2g($C$9),"",TEXT($C$7+((ROW()-19)*29.5),"B2yyyy/mm/")&TEXT($C$7,"B2dd"))),"") -> 1430/03/25 | E21: 2009/03/21 | F21: =IF(D21="","",F20-G21) -> 41325 | G21: 1087.5 | H21: =IF(K21="","",IF(TODAY()>=h2g(D21),$C$14/$C$5,"")) -> 1087.5 | I21: =IF(K21="",$C$14/$C$5,"") ->  | K21: 8
C22: 4 | D22: =IF(K22<>"",IF(h2g(TEXT($C$7+((ROW()-19)*29.5),"B2yyyy/mm/")&TEXT($C$7,"B2dd"))>$H$14,"",IF(h2g(TEXT($C$7+((ROW()-19)*29.5),"B2yyyy/mm/")&TEXT($C$7,"B2dd"))>h2g($C$9),"",TEXT($C$7+((ROW()-19)*29.5),"B2yyyy/mm/")&TEXT($C$7,"B2dd"))),"") -> 1430/04/25 | E22: 2009/04/20 | F22: 40237.5 | G22: 1087.5 | H22: =IF(K22="","",IF(TODAY()>=h2g(D22),$C$14/$C$5,"")) -> 1087.5 | I22: =IF(K22="",$C$14/$C$5,"") ->  | K22: 8
C23: 5 | D23: =IF(K23<>"",IF(h2g(TEXT($C$7+((ROW()-19)*29.5),"B2yyyy/mm/")&TEXT($C$7,"B2dd"))>$H$14,"",IF(h2g(TEXT($C$7+((ROW()-19)*29.5),"B2yyyy/mm/")&TEXT($C$7,"B2dd"))>h2g($C$9),"",TEXT($C$7+((ROW()-19)*29.5),"B2yyyy/mm/")&TEXT($C$7,"B2dd"))),"") -> 1430/05/25 | E23: 2009/05/19 | F23: 39150 | G23: 1087.5 | H23: =IF(K23="","",IF(TODAY()>=h2g(D23),$C$14/$C$5,"")) -> 1087.5 | I23: =IF(K23="",$C$14/$C$5,"") ->  | K23: 8
C24: 6 | D24: =IF(K24<>"",IF(h2g(TEXT($C$7+((ROW()-19)*29.5),"B2yyyy/mm/")&TEXT($C$7,"B2dd"))>$H$14,"",IF(h2g(TEXT($C$7+((ROW()-19)*29.5),"B2yyyy/mm/")&TEXT($C$7,"B2dd"))>h2g($C$9),"",TEXT($C$7+((ROW()-19)*29.5),"B2yyyy/mm/")&TEXT($C$7,"B2dd"))),"") -> 1430/06/25 | E24: 2009/06/18 | F24: 38062.5 | G24: 1087.5 | H24: =IF(K24="","",IF(TODAY()>=h2g(D24),$C$14/$C$5,"")) -> 1087.5 | I24: =IF(K24="",$C$14/$C$5,"") ->  | K24: 8
C25: 7 | D25: =IF(K25<>"",IF(h2g(TEXT($C$7+((ROW()-19)*29.5),"B2yyyy/mm/")&TEXT($C$7,"B2dd"))>$H$14,"",IF(h2g(TEXT($C$7+((ROW()-19)*29.5),"B2yyyy/mm/")&TEXT($C$7,"B2dd"))>h2g($C$9),"",TEXT($C$7+((ROW()-19)*29.5),"B2yyyy/mm/")&TEXT($C$7,"B2dd"))),"") -> 1430/07/25 | E25: 2009/07/17 | F25: 36975 | G25: 1087.5 | H25: =IF(K25="","",IF(TODAY()>=h2g(D25),$C$14/$C$5,"")) -> 1087.5 | I25: =IF(K25="",$C$14/$C$5,"") ->  | K25: 8
C26: 8 | D26: =IF(K26<>"",IF(h2g(TEXT($C$7+((ROW()-19)*29.5),"B2yyyy/mm/")&TEXT($C$7,"B2dd"))>$H$14,"",IF(h2g(TEXT($C$7+((ROW()-19)*29.5),"B2yyyy/mm/")&TEXT($C$7,"B2dd"))>h2g($C$9),"",TEXT($C$7+((ROW()-19)*29.5),"B2yyyy/mm/")&TEXT($C$7,"B2dd"))),"") -> 1430/08/25 | E26: 2009/08/16 | F26: 35887.5 | G26: 1087.5 | H26: =IF(K26="","",IF(TODAY()>=h2g(D26),$C$14/$C$5,"")) -> 1087.5 | I26: =IF(K26="",$C$14/$C$5,"") ->  | K26: 8
C27: 9 | D27: =IF(K27<>"",IF(h2g(TEXT($C$7+((ROW()-19)*29.5),"B2yyyy/mm/")&TEXT($C$7,"B2dd"))>$H$14,"",IF(h2g(TEXT($C$7+((ROW()-19)*29.5),"B2yyyy/mm/")&TEXT($C$7,"B2dd"))>h2g($C$9),"",TEXT($C$7+((ROW()-19)*29.5),"B2yyyy/mm/")&TEXT($C$7,"B2dd"))),"") -> 1430/09/25 | E27: 2009/09/14 | F27: 34800 | G27: 1087.5 | H27: =IF(K27="","",IF(TODAY()>=h2g(D27),$C$14/$C$5,"")) -> 1087.5 | I27: =IF(K27="",$C$14/$C$5,"") ->  | K27: 8
C28: 10 | D28: =IF(K28<>"",IF(h2g(TEXT($C$7+((ROW()-19)*29.5),"B2yyyy/mm/")&TEXT($C$7,"B2dd"))>$H$14,"",IF(h2g(TEXT($C$7+((ROW()-19)*29.5),"B2yyyy/mm/")&TEXT($C$7,"B2dd"))>h2g($C$9),"",TEXT($C$7+((ROW()-19)*29.5),"B2yyyy/mm/")&TEXT($C$7,"B2dd"))),"") -> 1430/10/25 | E28: 2009/10/14 | F28: 33712.5 | G28: 1087.5 | H28: =IF(K28="","",IF(TODAY()>=h2g(D28),$C$14/$C$5,"")) -> 1087.5 | I28: =IF(K28="",$C$14/$C$5,"") ->  | K28: 8
C29: 11 | D29: =IF(K29<>"",IF(h2g(TEXT($C$7+((ROW()-19)*29.5),"B2yyyy/mm/")&TEXT($C$7,"B2dd"))>$H$14,"",IF(h2g(TEXT($C$7+((ROW()-19)*29.5),"B2yyyy/mm/")&TEXT($C$7,"B2dd"))>h2g($C$9),"",TEXT($C$7+((ROW()-19)*29.5),"B2yyyy/mm/")&TEXT($C$7,"B2dd"))),"") -> 1430/11/25 | E29: 2009/11/12 | F29: 32625 | G29: 1087.5 | H29: =IF(K29="","",IF(TODAY()>=h2g(D29),$C$14/$C$5,"")) -> 1087.5 | I29: =IF(K29="",$C$14/$C$5,"") ->  | K29: 8
C30: 12 | D30: =IF(K30<>"",IF(h2g(TEXT($C$7+((ROW()-19)*29.5),"B2yyyy/mm/")&TEXT($C$7,"B2dd"))>$H$14,"",IF(h2g(TEXT($C$7+((ROW()-19)*29.5),"B2yyyy/mm/")&TEXT($C$7,"B2dd"))>h2g($C$9),"",TEXT($C$7+((ROW()-19)*29.5),"B2yyyy/mm/")&TEXT($C$7,"B2dd"))),"") -> 1430/12/25 | E30: 2009/12/12 | F30: 31537.5 | G30: 1087.5 | H30: =IF(K30="","",IF(TODAY()>=h2g(D30),$C$14/$C$5,"")) -> 1087.5 | I30: =IF(K30="",$C$14/$C$5,"") ->  | K30: 8
C31: 13 | D31: =IF(K31<>"",IF(h2g(TEXT($C$7+((ROW()-19)*29.5),"B2yyyy/mm/")&TEXT($C$7,"B2dd"))>$H$14,"",IF(h2g(TEXT($C$7+((ROW()-19)*29.5),"B2yyyy/mm/")&TEXT($C$7,"B2dd"))>h2g($C$9),"",TEXT($C$7+((ROW()-19)*29.5),"B2yyyy/mm/")&TEXT($C$7,"B2dd"))),"") -> 1431/01/25 | E31: 2010/01/10 | F31: 30450 | G31: 1087.5 | H31: =IF(K31="","",IF(TODAY()>=h2g(D31),$C$14/$C$5,"")) -> 1087.5 | I31: =IF(K31="",$C$14/$C$5,"") ->  | K31: 8
C32: 14 | D32: =IF(K32<>"",IF(h2g(TEXT($C$7+((ROW()-19)*29.5),"B2yyyy/mm/")&TEXT($C$7,"B2dd"))>$H$14,"",IF(h2g(TEXT($C$7+((ROW()-19)*29.5),"B2yyyy/mm/")&TEXT($C$7,"B2dd"))>h2g($C$9),"",TEXT($C$7+((ROW()-19)*29.5),"B2yyyy/mm/")&TEXT($C$7,"B2dd"))),"") -> 1431/02/25 | E32: 2010/02/09 | F32: 29362.5 | G32: 1087.5 | H32: =IF(K32="","",IF(TODAY()>=h2g(D32),$C$14/$C$5,"")) -> 1087.5 | I32: =IF(K32="",$C$14/$C$5,"") ->  | K32: 8
C33: 15 | D33: =IF(K33<>"",IF(h2g(TEXT($C$7+((ROW()-19)*29.5),"B2yyyy/mm/")&TEXT($C$7,"B2dd"))>$H$14,"",IF(h2g(TEXT($C$7+((ROW()-19)*29.5),"B2yyyy/mm/")&TEXT($C$7,"B2dd"))>h2g($C$9),"",TEXT($C$7+((ROW()-19)*29.5),"B2yyyy/mm/")&TEXT($C$7,"B2dd"))),"") -> 1431/03/25 | E33: 2010/03/10 | F33: 28275 | G33: 1087.5 | H33: =IF(K33="","",IF(TODAY()>=h2g(D33),$C$14/$C$5,"")) -> 1087.5 | I33: =IF(K33="",$C$14/$C$5,"") ->  | K33: 8
C34: 16 | D34: =IF(K34<>"",IF(h2g(TEXT($C$7+((ROW()-19)*29.5),"B2yyyy/mm/")&TEXT($C$7,"B2dd"))>$H$14,"",IF(h2g(TEXT($C$7+((ROW()-19)*29.5),"B2yyyy/mm/")&TEXT($C$7,"B2dd"))>h2g($C$9),"",TEXT($C$7+((ROW()-19)*29.5),"B2yyyy/mm/")&TEXT($C$7,"B2dd"))),"") -> 1431/04/25 | E34: 2010/04/09 | F34: 27187.5 | G34: 1087.5 | H34: =IF(K34="","",IF(TODAY()>=h2g(D34),$C$14/$C$5,"")) -> 1087.5 | I34: =IF(K34="",$C$14/$C$5,"") ->  | K34: 8
C35: 17 | D35: =IF(K35<>"",IF(h2g(TEXT($C$7+((ROW()-19)*29.5),"B2yyyy/mm/")&TEXT($C$7,"B2dd"))>$H$14,"",IF(h2g(TEXT($C$7+((ROW()-19)*29.5),"B2yyyy/mm/")&TEXT($C$7,"B2dd"))>h2g($C$9),"",TEXT($C$7+((ROW()-19)*29.5),"B2yyyy/mm/")&TEXT($C$7,"B2dd"))),"") -> 1431/05/25 | E35: 2010/05/08 | F35: 26100 | G35: 1087.5 | H35: =IF(K35="","",IF(TODAY()>=h2g(D35),$C$14/$C$5,"")) -> 1087.5 | I35: =IF(K35="",$C$14/$C$5,"") ->  | K35: 8
C36: 18 | D36: =IF(K36<>"",IF(h2g(TEXT($C$7+((ROW()-19)*29.5),"B2yyyy/mm/")&TEXT($C$7,"B2dd"))>$H$14,"",IF(h2g(TEXT($C$7+((ROW()-19)*29.5),"B2yyyy/mm/")&TEXT($C$7,"B2dd"))>h2g($C$9),"",TEXT($C$7+((ROW()-19)*29.5),"B2yyyy/mm/")&TEXT($C$7,"B2dd"))),"") -> 1431/06/25 | E36: 2010/06/07 | F36: 25012.5 | G36: 1087.5 | H36: =IF(K36="","",IF(TODAY()>=h2g(D36),$C$14/$C$5,"")) -> 1087.5 | I36: =IF(K36="",$C$14/$C$5,"") ->  | K36: 8
C37: 19 | D37: =IF(K37<>"",IF(h2g(TEXT($C$7+((ROW()-19)*29.5),"B2yyyy/mm/")&TEXT($C$7,"B2dd"))>$H$14,"",IF(h2g(TEXT($C$7+((ROW()-19)*29.5),"B2yyyy/mm/")&TEXT($C$7,"B2dd"))>h2g($C$9),"",TEXT($C$7+((ROW()-19)*29.5),"B2yyyy/mm/")&TEXT($C$7,"B2dd"))),"") -> 1431/07/25 | E37: 2010/07/06 | F37: 23925 | G37: 1087.5 | H37: =IF(K37="","",IF(TODAY()>=h2g(D37),$C$14/$C$5,"")) -> 1087.5 | I37: =IF(K37="",$C$14/$C$5,"") ->  | K37: 8
C38: 20 | D38: =IF(K38<>"",IF(h2g(TEXT($C$7+((ROW()-19)*29.5),"B2yyyy/mm/")&TEXT($C$7,"B2dd"))>$H$14,"",IF(h2g(TEXT($C$7+((ROW()-19)*29.5),"B2yyyy/mm/")&TEXT($C$7,"B2dd"))>h2g($C$9),"",TEXT($C$7+((ROW()-19)*29.5),"B2yyyy/mm/")&TEXT($C$7,"B2dd"))),"") -> 1431/08/25 | E38: 2010/08/05 | F38: 22837.5 | G38: 1087.5 | H38: =IF(K38="","",IF(TODAY()>=h2g(D38),$C$14/$C$5,"")) -> 1087.5 | I38: =IF(K38="",$C$14/$C$5,"") ->  | K38: 8
C39: 21 | D39: =IF(K39<>"",IF(h2g(TEXT($C$7+((ROW()-19)*29.5),"B2yyyy/mm/")&TEXT($C$7,"B2dd"))>$H$14,"",IF(h2g(TEXT($C$7+((ROW()-19)*29.5),"B2yyyy/mm/")&TEXT($C$7,"B2dd"))>h2g($C$9),"",TEXT($C$7+((ROW()-19)*29.5),"B2yyyy/mm/")&TEXT($C$7,"B2dd"))),"") -> 1431/09/25 | E39: 2010/09/03 | F39: 21750 | G39: 1087.5 | H39: =IF(K39="","",IF(TODAY()>=h2g(D39),$C$14/$C$5,"")) -> 1087.5 | I39: =IF(K39="",$C$14/$C$5,"") ->  | K39: 8
C40: 22 | D40: =IF(K40<>"",IF(h2g(TEXT($C$7+((ROW()-19)*29.5),"B2yyyy/mm/")&TEXT($C$7,"B2dd"))>$H$14,"",IF(h2g(TEXT($C$7+((ROW()-19)*29.5),"B2yyyy/mm/")&TEXT($C$7,"B2dd"))>h2g($C$9),"",TEXT($C$7+((ROW()-19)*29.5),"B2yyyy/mm/")&TEXT($C$7,"B2dd"))),"") -> 1431/10/25 | E40: 2010/10/03 | F40: 20662.5 | G40: 1087.5 | H40: =IF(K40="","",IF(TODAY()>=h2g(D40),$C$14/$C$5,"")) -> 1087.5 | I40: =IF(K40="",$C$14/$C$5,"") ->  | K40: 8
C41: 23 | D41: =IF(K41<>"",IF(h2g(TEXT($C$7+((ROW()-19)*29.5),"B2yyyy/mm/")&TEXT($C$7,"B2dd"))>$H$14,"",IF(h2g(TEXT($C$7+((ROW()-19)*29.5),"B2yyyy/mm/")&TEXT($C$7,"B2dd"))>h2g($C$9),"",TEXT($C$7+((ROW()-19)*29.5),"B2yyyy/mm/")&TEXT($C$7,"B2dd"))),"") -> 1431/11/25 | E41: 2010/11/01 | F41: 19575 | G41: 1087.5 | H41: =IF(K41="","",IF(TODAY()>=h2g(D41),$C$14/$C$5,"")) -> 1087.5 | I41: =IF(K41="",$C$14/$C$5,"") ->  | K41: 8
C42: 24 | D42: =IF(K42<>"",IF(h2g(TEXT($C$7+((ROW()-19)*29.5),"B2yyyy/mm/")&TEXT($C$7,"B2dd"))>$H$14,"",IF(h2g(TEXT($C$7+((ROW()-19)*29.5),"B2yyyy/mm/")&TEXT($C$7,"B2dd"))>h2g($C$9),"",TEXT($C$7+((ROW()-19)*29.5),"B2yyyy/mm/")&TEXT($C$7,"B2dd"))),"") -> 1431/12/25 | E42: 2010/12/01 | F42: 18487.5 | G42: 1087.5 | H42: =IF(K42="","",IF(TODAY()>=h2g(D42),$C$14/$C$5,"")) -> 1087.5 | I42: =IF(K42="",$C$14/$C$5,"") ->  | K42: 8
C43: 25 | D43: =IF(K43<>"",IF(h2g(TEXT($C$7+((ROW()-19)*29.5),"B2yyyy/mm/")&TEXT($C$7,"B2dd"))>$H$14,"",IF(h2g(TEXT($C$7+((ROW()-19)*29.5),"B2yyyy/mm/")&TEXT($C$7,"B2dd"))>h2g($C$9),"",TEXT($C$7+((ROW()-19)*29.5),"B2yyyy/mm/")&TEXT($C$7,"B2dd"))),"") -> 1432/01/25 | E43: 2010/12/31 | F43: 17400 | G43: 1087.5 | H43: =IF(K43="","",IF(TODAY()>=h2g(D43),$C$14/$C$5,"")) -> 1087.5 | I43: =IF(K43="",$C$14/$C$5,"") ->  | K43: 8
C44: 26 | D44: =IF(K44<>"",IF(h2g(TEXT($C$7+((ROW()-19)*29.5),"B2yyyy/mm/")&TEXT($C$7,"B2dd"))>$H$14,"",IF(h2g(TEXT($C$7+((ROW()-19)*29.5),"B2yyyy/mm/")&TEXT($C$7,"B2dd"))>h2g($C$9),"",TEXT($C$7+((ROW()-19)*29.5),"B2yyyy/mm/")&TEXT($C$7,"B2dd"))),"") -> 1432/02/25 | E44: 2011/01/30 | F44: 16312.5 | G44: 1087.5 | H44: =IF(K44="","",IF(TODAY()>=h2g(D44),$C$14/$C$5,"")) -> 1087.5 | I44: =IF(K44="",$C$14/$C$5,"") ->  | K44: 8
C45: 27 | D45: =IF(K45<>"",IF(h2g(TEXT($C$7+((ROW()-19)*29.5),"B2yyyy/mm/")&TEXT($C$7,"B2dd"))>$H$14,"",IF(h2g(TEXT($C$7+((ROW()-19)*29.5),"B2yyyy/mm/")&TEXT($C$7,"B2dd"))>h2g($C$9),"",TEXT($C$7+((ROW()-19)*29.5),"B2yyyy/mm/")&TEXT($C$7,"B2dd"))),"") -> 1432/03/25 | E45: 2011/02/28 | F45: 15225 | G45: 1087.5 | H45: =IF(K45="","",IF(TODAY()>=h2g(D45),$C$14/$C$5,"")) -> 1087.5 | I45: =IF(K45="",$C$14/$C$5,"") ->  | K45: 8
C46: 28 | D46: =IF(K46<>"",IF(h2g(TEXT($C$7+((ROW()-19)*29.5),"B2yyyy/mm/")&TEXT($C$7,"B2dd"))>$H$14,"",IF(h2g(TEXT($C$7+((ROW()-19)*29.5),"B2yyyy/mm/")&TEXT($C$7,"B2dd"))>h2g($C$9),"",TEXT($C$7+((ROW()-19)*29.5),"B2yyyy/mm/")&TEXT($C$7,"B2dd"))),"") -> 1432/04/25 | E46: 2011/03/30 | F46: 14137.5 | G46: 1087.5 | H46: =IF(K46="","",IF(TODAY()>=h2g(D46),$C$14/$C$5,"")) -> 1087.5 | I46: =IF(K46="",$C$14/$C$5,"") ->  | K46: 8
C47: 29 | D47: =IF(K47<>"",IF(h2g(TEXT($C$7+((ROW()-19)*29.5),"B2yyyy/mm/")&TEXT($C$7,"B2dd"))>$H$14,"",IF(h2g(TEXT($C$7+((ROW()-19)*29.5),"B2yyyy/mm/")&TEXT($C$7,"B2dd"))>h2g($C$9),"",TEXT($C$7+((ROW()-19)*29.5),"B2yyyy/mm/")&TEXT($C$7,"B2dd"))),"") -> 1432/05/25 | E47: 2011/04/28 | F47: 13050 | G47: 1087.5 | H47: =IF(K47="","",IF(TODAY()>=h2g(D47),$C$14/$C$5,"")) -> 1087.5 | I47: =IF(K47="",$C$14/$C$5,"") ->  | K47: 8
C48: 30 | D48: =IF(K48<>"",IF(h2g(TEXT($C$7+((ROW()-19)*29.5),"B2yyyy/mm/")&TEXT($C$7,"B2dd"))>$H$14,"",IF(h2g(TEXT($C$7+((ROW()-19)*29.5),"B2yyyy/mm/")&TEXT($C$7,"B2dd"))>h2g($C$9),"",TEXT($C$7+((ROW()-19)*29.5),"B2yyyy/mm/")&TEXT($C$7,"B2dd"))),"") -> 1432/06/25 | E48: 2011/05/28 | F48: 11962.5 | G48: 1087.5 | H48: =IF(K48="","",IF(TODAY()>=h2g(D48),$C$14/$C$5,"")) -> 1087.5 | I48: =IF(K48="",$C$14/$C$5,"") ->  | K48: 8
C49: 31 | D49: =IF(K49<>"",IF(h2g(TEXT($C$7+((ROW()-19)*29.5),"B2yyyy/mm/")&TEXT($C$7,"B2dd"))>$H$14,"",IF(h2g(TEXT($C$7+((ROW()-19)*29.5),"B2yyyy/mm/")&TEXT($C$7,"B2dd"))>h2g($C$9),"",TEXT($C$7+((ROW()-19)*29.5),"B2yyyy/mm/")&TEXT($C$7,"B2dd"))),"") -> 1432/07/25 | E49: 2011/06/26 | F49: 10875 | G49: 1087.5 | H49: =IF(K49="","",IF(TODAY()>=h2g(D49),$C$14/$C$5,"")) -> 1087.5 | I49: =IF(K49="",$C$14/$C$5,"") ->  | K49: 8
C50: 32 | D50: =IF(K50<>"",IF(h2g(TEXT($C$7+((ROW()-19)*29.5),"B2yyyy/mm/")&TEXT($C$7,"B2dd"))>$H$14,"",IF(h2g(TEXT($C$7+((ROW()-19)*29.5),"B2yyyy/mm/")&TEXT($C$7,"B2dd"))>h2g($C$9),"",TEXT($C$7+((ROW()-19)*29.5),"B2yyyy/mm/")&TEXT($C$7,"B2dd"))),"") -> 1432/08/25 | E50: 2011/07/26 | F50: 9787.5 | G50: 1087.5 | H50: =IF(K50="","",IF(TODAY()>=h2g(D50),$C$14/$C$5,"")) -> 1087.5 | I50: =IF(K50="",$C$14/$C$5,"") ->  | K50: 8
C51: 33 | D51: =IF(K51<>"",IF(h2g(TEXT($C$7+((ROW()-19)*29.5),"B2yyyy/mm/")&TEXT($C$7,"B2dd"))>$H$14,"",IF(h2g(TEXT($C$7+((ROW()-19)*29.5),"B2yyyy/mm/")&TEXT($C$7,"B2dd"))>h2g($C$9),"",TEXT($C$7+((ROW()-19)*29.5),"B2yyyy/mm/")&TEXT($C$7,"B2dd"))),"") -> 1432/09/25 | E51: 2011/08/24 | F51: 8700 | G51: 1087.5 | H51: =IF(K51="","",IF(TODAY()>=h2g(D51),$C$14/$C$5,"")) -> 1087.5 | I51: =IF(K51="",$C$14/$C$5,"") ->  | K51: 8
C52: 34 | D52: =IF(K52<>"",IF(h2g(TEXT($C$7+((ROW()-19)*29.5),"B2yyyy/mm/")&TEXT($C$7,"B2dd"))>$H$14,"",IF(h2g(TEXT($C$7+((ROW()-19)*29.5),"B2yyyy/mm/")&TEXT($C$7,"B2dd"))>h2g($C$9),"",TEXT($C$7+((ROW()-19)*29.5),"B2yyyy/mm/")&TEXT($C$7,"B2dd"))),"") -> 1432/10/25 | E52: 2011/09/23 | F52: 7612.5 | G52: 1087.5 | H52: =IF(K52="","",IF(TODAY()>=h2g(D52),$C$14/$C$5,"")) -> 1087.5 | I52: =IF(K52="",$C$14/$C$5,"") ->  | K52: 8
C53: 35 | D53: =IF(K53<>"",IF(h2g(TEXT($C$7+((ROW()-19)*29.5),"B2yyyy/mm/")&TEXT($C$7,"B2dd"))>$H$14,"",IF(h2g(TEXT($C$7+((ROW()-19)*29.5),"B2yyyy/mm/")&TEXT($C$7,"B2dd"))>h2g($C$9),"",TEXT($C$7+((ROW()-19)*29.5),"B2yyyy/mm/")&TEXT($C$7,"B2dd"))),"") -> 1432/11/25 | E53: 2011/10/22 | F53: 6525 | G53: 1087.5 | H53: =IF(K53="","",IF(TODAY()>=h2g(D53),$C$14/$C$5,"")) -> 1087.5 | I53: =IF(K53="",$C$14/$C$5,"") ->  | K53: 8
C54: 36 | D54: =IF(K54<>"",IF(h2g(TEXT($C$7+((ROW()-19)*29.5),"B2yyyy/mm/")&TEXT($C$7,"B2dd"))>$H$14,"",IF(h2g(TEXT($C$7+((ROW()-19)*29.5),"B2yyyy/mm/")&TEXT($C$7,"B2dd"))>h2g($C$9),"",TEXT($C$7+((ROW()-19)*29.5),"B2yyyy/mm/")&TEXT($C$7,"B2dd"))),"") -> 1432/12/25 | E54: 2011/11/21 | F54: 5437.5 | G54: 1087.5 | H54: =IF(K54="","",IF(TODAY()>=h2g(D54),$C$14/$C$5,"")) -> 1087.5 | I54: =IF(K54="",$C$14/$C$5,"") ->  | K54: 8
C55: 37 | D55: =IF(K55<>"",IF(h2g(TEXT($C$7+((ROW()-19)*29.5),"B2yyyy/mm/")&TEXT($C$7,"B2dd"))>$H$14,"",IF(h2g(TEXT($C$7+((ROW()-19)*29.5),"B2yyyy/mm/")&TEXT($C$7,"B2dd"))>h2g($C$9),"",TEXT($C$7+((ROW()-19)*29.5),"B2yyyy/mm/")&TEXT($C$7,"B2dd"))),"") -> 1433/01/25 | E55: 2011/12/20 | F55: 4350 | G55: 1087.5 | H55: =IF(K55="","",IF(TODAY()>=h2g(D55),$C$14/$C$5,"")) -> 1087.5 | I55: =IF(K55="",$C$14/$C$5,"") ->  | K55: 8
C56: 38 | D56: =IF(K56<>"",IF(h2g(TEXT($C$7+((ROW()-19)*29.5),"B2yyyy/mm/")&TEXT($C$7,"B2dd"))>$H$14,"",IF(h2g(TEXT($C$7+((ROW()-19)*29.5),"B2yyyy/mm/")&TEXT($C$7,"B2dd"))>h2g($C$9),"",TEXT($C$7+((ROW()-19)*29.5),"B2yyyy/mm/")&TEXT($C$7,"B2dd"))),"") -> 1433/02/25 | E56: 2012/01/19 | F56: 3262.5 | G56: 1087.5 | H56: =IF(K56="","",IF(TODAY()>=h2g(D56),$C$14/$C$5,"")) -> 1087.5 | I56: =IF(K56="",$C$14/$C$5,"") ->  | K56: 8
D57: =IF(K57<>"",IF(h2g(TEXT($C$7+((ROW()-19)*29.5),"B2yyyy/mm/")&TEXT($C$7,"B2dd"))>$H$14,"",IF(h2g(TEXT($C$7+((ROW()-19)*29.5),"B2yyyy/mm/")&TEXT($C$7,"B2dd"))>h2g($C$9),"",TEXT($C$7+((ROW()-19)*29.5),"B2yyyy/mm/")&TEXT($C$7,"B2dd"))),"") ->  | H57: =IF(K57="","",IF(TODAY()>=h2g(D57),$C$14/$C$5,"")) ->  | I57: =IF(K57="",$C$14/$C$5,"") -> 1087.5
D58: =IF(K58<>"",IF(h2g(TEXT($C$7+((ROW()-19)*29.5),"B2yyyy/mm/")&TEXT($C$7,"B2dd"))>$H$14,"",IF(h2g(TEXT($C$7+((ROW()-19)*29.5),"B2yyyy/mm/")&TEXT($C$7,"B2dd"))>h2g($C$9),"",TEXT($C$7+((ROW()-19)*29.5),"B2yyyy/mm/")&TEXT($C$7,"B2dd"))),"") ->  | H58: =IF(K58="","",IF(TODAY()>=h2g(D58),$C$14/$C$5,"")) ->  | I58: =IF(K58="",$C$14/$C$5,"") -> 1087.5
